fUST/lending_fUST_20250330
["ID","MTS","AMOUNT","RATE_DAILY","PERIOD"]
[356836989,1743307835394,-500.0,0.00022989,2]
[356836990,1743307835404,-500.0,0.00022989,2]
[356836991,1743307835414,-1489.21,0.00022989,2]
[356836992,1743307835423,-500.0,0.00022989,2]
[356836993,1743307835433,-500.0,0.00022989,2]
[356836994,1743307835443,-500.0,0.00022989,2]
[356836995,1743307835452,-500.0,0.00022989,2]
[356836996,1743307835462,-847.41,0.00022989,2]
[356836997,1743307835471,-500.0,0.00022989,2]
[356836998,1743307835481,-344.61048022,0.00022989,2]
[356836999,1743307835491,-21825.15,0.00022989,2]
[356837000,1743307835500,-500.0,0.00022989,2]
[356837001,1743307835510,-9632.45,0.00022989,2]
[356837002,1743307835519,-508.36238506,0.00022989,2]
[356837003,1743307835530,-500.0,0.00022989,2]
[356837004,1743307835539,-1697.59,0.00022989,2]
[356837005,1743307835549,-500.0,0.00022989,2]
[356837006,1743307835560,-547.33,0.00022989,2]
[356837007,1743307835569,-500.0,0.00022989,2]
[356837008,1743307835579,-500.0,0.00022989,2]
[356837009,1743307835589,-500.0,0.00022989,2]
[356837010,1743307835601,-3914.68,0.00022989,2]
[356837011,1743307835610,-1844.55,0.00022989,2]
[356837012,1743307835620,-500.0,0.00022989,2]
[356837013,1743307835630,-500.0,0.00022989,2]
[356837014,1743307835639,-558.68882928,0.00022989,2]
[356837015,1743307835649,-500.0,0.00022989,2]
[356837016,1743307835658,-500.0,0.00022989,2]
[356837017,1743307835668,-506.13318879,0.00022989,2]
[356837018,1743307835679,-965.65,0.00022989,2]
[356837019,1743307835689,-500.85199481,0.00022989,2]
[356837020,1743307835698,-505.27519859,0.00022989,2]
[356837021,1743307835707,-1216.59,0.00022989,2]
[356837022,1743307835717,-500.0,0.00022989,2]
[356837023,1743307835726,-1252.06,0.00022989,2]
[356837024,1743307835736,-500.09132775,0.00022989,2]
[356837025,1743307835745,-502.92634945,0.00022989,2]
[356837026,1743307835755,-2623.6,0.00022989,2]
[356837027,1743307835765,-500.0,0.00022989,2]
[356837028,1743307835775,-500.0,0.00022989,2]
[356837029,1743307835784,-502.52906685,0.00022989,2]
[356837030,1743307835794,-521.24715593,0.00022989,2]
[356837031,1743307835803,-151.0,0.00022989,7]
[356837032,1743307835812,-500.0,0.00022989,2]
[356837033,1743307835822,-500.0,0.00022989,2]
[356837034,1743307835831,-500.0,0.00022989,2]
[356837035,1743307835840,-3393.05,0.00022989,2]
[356837036,1743307835850,-3393.05,0.00022989,2]
[356837037,1743307835859,-3393.05,0.00022989,2]
[356837038,1743307835868,-1940.85038093,0.00022989,2]
[356837052,1743307837839,-500.0,0.00022988,2]
[356837053,1743307837849,-1452.19961907,0.00022989,2]
[356837054,1743307837860,-1596.18336761,0.00022989,2]
[356837055,1743307838189,-1796.86663239,0.00022989,2]
[356837056,1743307838199,-3393.05,0.00022989,2]
[356837057,1743307838208,-580.37,0.00022989,2]
[356837058,1743307838218,-10066.44345033,0.00022989,2]
[356837066,1743307840142,-839.25,0.00022987,2]
[356837067,1743307840152,-500.0,0.00022987,2]
[356837068,1743307840161,-1265.45654967,0.00022989,2]
[356837069,1743307840170,-531.04485022,0.00022989,2]
[356837070,1743307840179,-500.0,0.00022989,2]
[356837071,1743307840188,-500.0,0.00022989,2]
[356837072,1743307840197,-792.77,0.00022989,2]
[356837073,1743307840206,-500.0,0.00022989,2]
[356837074,1743307840215,-501.45578906,0.00022989,2]
[356837075,1743307840224,-606.78,0.00022989,2]
[356837076,1743307840233,-500.0,0.00022989,2]
[356837077,1743307840243,-32963.2761458,0.00022989,2]
[356837079,1743307841091,-172.63844085,0.00022989,2]
[356837121,1743307843007,-50.29037992,0.00022989,2]
[356837149,1743307849371,-210.00708761,0.00022987,2]
[356837150,1743307853342,-197.08551895,0.00022987,2]
[356837151,1743308238579,10000.0,0.00018,2]
[356837152,1743308254708,10000.0,0.00014,10]
[356837153,1743308260864,10000.0,0.00018,2]
[356837154,1743308271598,10000.0,0.00018,2]
[356837155,1743308281256,10000.0,0.00018,2]
[356837156,1743308289315,10000.0,0.00018,2]
[356837157,1743308298269,10000.0,0.00018,2]
[356837158,1743308306212,10000.0,0.00018,2]
[356837159,1743308313812,10000.0,0.00018,2]
[356837160,1743308326512,712.0,0.00018,2]
[356837163,1743308825135,-300.0,0.00020997,2]
[356837164,1743308825158,-169.1504265,0.00020998,2]
[356837165,1743308825184,-500.0,0.00020998,2]
[356837166,1743308825210,-500.0,0.00020998,2]
[356837167,1743308825236,-500.0,0.00020998,2]
[356837168,1743308825260,-500.0,0.00020998,2]
[356837169,1743308825285,-7.52935429,0.00020998,2]
[356837170,1743308826135,-325.57522637,0.00020998,2]
[356837171,1743308826156,-384.461203,0.00020999,2]
[356837172,1743308826178,-1061.90718965,0.00020999,2]
[356837173,1743308832086,-920.46419281,0.00020999,2]
[356837174,1743308836112,-177.33496541,0.00020999,2]
[356837175,1743308837212,-848.85600929,0.00020999,2]
[356837197,1743308946142,-283.12114704,0.0002,20]
[356837198,1743308946162,-356.63090312,0.0002,2]
[356837199,1743308946183,-300.0,0.00020998,2]
[356837200,1743308946203,-36515.6544659,0.00020999,2]
[356837201,1743308949096,-15926.92726561,0.00020999,2]
[356837202,1743308949117,-265.61603885,0.00021,2]
[356837203,1743308949139,-3263.03909661,0.000215,2]
[356837204,1743308949160,-274.28845546,0.0002174,2]
[356837205,1743308949182,-637.71440066,0.00021899,2]
[356837206,1743308949204,-1401.4438965,0.000219,2]
[356837207,1743308949226,-151.0,0.00021986,2]
[356837208,1743308949247,-3277.2018795,0.00021987,2]
[356837209,1743308949269,-5680.68777872,0.00021987,2]
[356837210,1743308949293,-1297.99315174,0.00021989,2]
[356837211,1743308949315,-915.43,0.00021997,2]
[356837212,1743308949336,-2131.40837002,0.00021997,2]
[356837221,1743308974141,-19740.79162998,0.00021997,2]
[356837222,1743308974165,-5676.06368991,0.00021997,2]
[356837240,1743309032172,-500.0,0.00021917,2]
[356837241,1743309032181,-500.0,0.00021917,2]
[356837242,1743309032190,-500.0,0.00021917,2]
[356837243,1743309032199,-500.0,0.00021917,2]
[356837244,1743309032208,-661.5,0.00021917,2]
[356837245,1743309032218,-500.0,0.00021917,2]
[356837246,1743309032227,-500.0,0.00021917,2]
[356837247,1743309032236,-507.81891312,0.00021917,2]
[356837248,1743309032245,-500.0,0.00021917,2]
[356837249,1743309032254,-500.0,0.00021917,2]
[356837250,1743309032263,-300.0,0.00021996,2]
[356837251,1743309032272,-788.56631009,0.00021997,2]
[356837252,1743309032281,-1917.9,0.00021997,2]
[356837253,1743309032290,-500.0,0.00021997,2]
[356837254,1743309032299,-1626.68,0.00021997,2]
[356837255,1743309032308,-12073.37,0.00021997,2]
[356837256,1743309032318,-500.0,0.00021997,2]
[356837257,1743309032327,-1998.23,0.00021997,2]
[356837258,1743309032336,-2725.4,0.00021997,2]
[356837259,1743309032345,-1032.22,0.00021997,2]
[356837260,1743309032354,-779.74,0.00021997,2]
[356837261,1743309032363,-1635.43659445,0.00021997,2]
[356837262,1743309032375,-4561.97340555,0.00021997,2]
[356837263,1743309032384,-6252.42,0.00021997,2]
[356837264,1743309032393,-500.0,0.00021998,2]
[356837265,1743309032403,-500.0,0.00021998,2]
[356837266,1743309032412,-3824.87,0.00021998,2]
[356837267,1743309032421,-483.73733323,0.00021998,2]
[356837268,1743309032431,-6105.27,0.00021998,2]
[356837269,1743309032440,-5965.4,0.00021998,2]
[356837270,1743309032450,-9958.98,0.00021998,2]
[356837271,1743309032459,-500.0,0.00021998,2]
[356837272,1743309032468,-1029.59,0.00021998,2]
[356837273,1743309032477,-3355.42,0.00021998,2]
[356837274,1743309032486,-776.14,0.00021998,2]
[356837275,1743309032495,-3784.98,0.00021998,2]
[356837276,1743309032503,-500.0,0.00021998,2]
[356837277,1743309032512,-1121.21,0.00021998,2]
[356837278,1743309032521,-1338.62,0.00021998,2]
[356837279,1743309032530,-1696.52,0.00021998,2]
[356837280,1743309032539,-1696.52,0.00021998,2]
[356837281,1743309032548,-1696.52,0.00021998,2]
[356837282,1743309032557,-1696.52,0.00021998,2]
[356837283,1743309032566,-1696.52,0.00021998,2]
[356837284,1743309032575,-1770.81,0.00021998,2]
[356837285,1743309032584,-2550.85,0.00021998,2]
[356837286,1743309032593,-20326.19,0.00021998,2]
[356837287,1743309032602,-1111.59,0.00021998,2]
[356837288,1743309032611,-676.92,0.00021998,2]
[356837289,1743309032620,-1095.89,0.00021998,2]
[356837290,1743309032629,-776.41,0.00021998,2]
[356837291,1743309032639,-5347.66,0.00021998,2]
[356837292,1743309032648,-5274.98,0.00021998,2]
[356837293,1743309032657,-661.1,0.00021998,2]
[356837294,1743309032666,-5623.45,0.00021998,2]
[356837295,1743309032675,-1396.52,0.00021998,2]
[356837296,1743309032684,-907.47,0.00021998,2]
[356837297,1743309032694,-4212.92,0.00021998,2]
[356837298,1743309032703,-500.0,0.00021998,2]
[356837299,1743309032712,-500.0,0.00021998,2]
[356837300,1743309032721,-1046.17,0.00021998,2]
[356837301,1743309032731,-2014.57,0.00021998,2]
[356837302,1743309032740,-817.0,0.00021998,2]
[356837303,1743309032749,-500.0,0.00021998,2]
[356837304,1743309032758,-500.0,0.00021998,2]
[356837305,1743309032767,-2147.71,0.00021998,2]
[356837306,1743309032777,-5080.14876473,0.00021999,2]
[356837307,1743309032786,-500.0,0.00021999,2]
[356837308,1743309032795,-500.0,0.00021999,2]
[356837309,1743309032805,-520.24604962,0.00021999,2]
[356837310,1743309032814,-500.0,0.00021999,2]
[356837311,1743309032824,-1100.49,0.00021999,2]
[356837312,1743309032833,-660.23,0.00021999,2]
[356837313,1743309032843,-995.55,0.00021999,2]
[356837314,1743309032852,-500.0,0.00021999,2]
[356837315,1743309032861,-500.0,0.00021999,2]
[356837316,1743309032870,-500.0,0.00021999,2]
[356837317,1743309032879,-500.0,0.00021999,2]
[356837318,1743309032889,-537.303028,0.00021999,2]
[356837319,1743309032898,-834.93,0.00021999,2]
[356837320,1743309032908,-500.0,0.00021999,2]
[356837321,1743309032917,-1885.99,0.00021999,2]
[356837322,1743309032926,-662.19,0.00021999,2]
[356837323,1743309032935,-500.0,0.00021999,2]
[356837324,1743309032944,-831.3,0.00021999,2]
[356837325,1743309032953,-500.0,0.00021999,2]
[356837326,1743309032963,-2242.91,0.00021999,2]
[356837327,1743309032972,-500.0,0.00021999,2]
[356837328,1743309032981,-1370.33,0.00021999,2]
[356837329,1743309032991,-684.77,0.00021999,2]
[356837330,1743309033000,-513.50251401,0.00021999,2]
[356837331,1743309033009,-500.0,0.00021999,2]
[356837332,1743309033021,-500.0,0.00021999,2]
[356837333,1743309033030,-697.97,0.00021999,2]
[356837334,1743309033039,-1343.8,0.00021999,2]
[356837335,1743309033048,-500.0,0.00021999,2]
[356837336,1743309033058,-1369.95,0.00021999,2]
[356837337,1743309033068,-500.0,0.00021999,2]
[356837338,1743309033077,-1523.55,0.00021999,2]
[356837339,1743309033086,-500.0,0.00021999,2]
[356837340,1743309033097,-1147.07,0.00021999,2]
[356837341,1743309033107,-500.0,0.00021999,2]
[356837342,1743309033117,-500.0,0.00021999,2]
[356837343,1743309033126,-708.41,0.00021999,2]
[356837344,1743309033135,-608.95,0.00021999,2]
[356837345,1743309033145,-500.0,0.00021999,2]
[356837346,1743309033154,-1432.47,0.00021999,2]
[356837347,1743309033163,-2303.54,0.00021999,2]
[356837348,1743309033172,-1458.95,0.00021999,2]
[356837349,1743309033182,-832.33,0.00021999,2]
[356837350,1743309033191,-619.89,0.00021999,2]
[356837351,1743309033200,-501.01646915,0.00021999,2]
[356837352,1743309033209,-500.0,0.00021999,2]
[356837353,1743309033218,-500.0,0.00021999,2]
[356837354,1743309033227,-883.73,0.00021999,2]
[356837355,1743309033237,-500.0,0.00021999,2]
[356837356,1743309033247,-755.98,0.00021999,2]
[356837357,1743309033257,-1391.43,0.00021999,2]
[356837358,1743309033266,-1233.25,0.00021999,2]
[356837359,1743309033276,-751.95,0.00021999,2]
[356837360,1743309033287,-500.0,0.00021999,2]
[356837361,1743309033296,-500.0,0.00021999,2]
[356837362,1743309033306,-589.8,0.00021999,2]
[356837363,1743309033315,-1337.61,0.00021999,2]
[356837364,1743309033324,-500.0,0.00021999,2]
[356837365,1743309033334,-541.56,0.00021999,2]
[356837366,1743309033343,-509.09,0.00021999,2]
[356837367,1743309033352,-1044.7,0.00021999,2]
[356837368,1743309033361,-508.51783501,0.00021999,2]
[356837369,1743309033371,-500.0,0.00021999,2]
[356837370,1743309033380,-500.0,0.00021999,2]
[356837371,1743309033389,-506.53361915,0.00021999,2]
[356837372,1743309033399,-600.0,0.00021999,2]
[356837373,1743309033409,-500.0,0.00021999,2]
[356837374,1743309033419,-500.0,0.00021999,2]
[356837375,1743309033428,-604.87,0.00021999,2]
[356837376,1743309033437,-500.0,0.00021999,2]
[356837377,1743309033447,-3400.11,0.00021999,2]
[356837378,1743309033457,-539.38,0.00021999,2]
[356837379,1743309033466,-3320.42,0.00021999,2]
[356837380,1743309033476,-500.0,0.00021999,2]
[356837381,1743309033485,-3085.59,0.00021999,2]
[356837382,1743309033494,-500.0,0.00021999,2]
[356837383,1743309033504,-1194.66,0.00021999,2]
[356837384,1743309033513,-424.29789705,0.00021999,2]
[356837385,1743309033523,-5367.18,0.00021999,2]
[356837386,1743309033532,-1427.16,0.00021999,2]
[356837387,1743309033542,-544.64,0.00021999,2]
[356837388,1743309033552,-19698.53554076,0.00021999,2]
[356837403,1743309043638,-500.0,0.00021917,2]
[356837404,1743309043648,-500.0,0.00021917,2]
[356837405,1743309043657,-259.23384229,0.00021996,2]
[356837406,1743309043667,-500.0,0.00021997,2]
[356837407,1743309043678,-500.0,0.00021998,2]
[356837408,1743309043687,-500.0,0.00021998,2]
[356837409,1743309043697,-586.88802538,0.00021998,2]
[356837410,1743309043706,-1416.09856333,0.00021998,2]
[356837432,1743309046229,-684.3999998,0.00021917,2]
[356837433,1743309046240,-370.2400002,0.00021917,2]
[356837434,1743309046250,-229.76161372,0.00021996,2]
[356837435,1743309046260,-1842.34143667,0.00021998,2]
[356837436,1743309046270,-1154.26364503,0.00021999,2]
[356837437,1743309046301,-62.97081421,0.00021999,2]
[356837438,1743309046311,-2229.50401299,0.00021999,2]
[356837439,1743309081531,250.0,0.00020995,2]
[356837443,1743309958112,-726.49536283,0.00020673,2]
[356837444,1743310028099,-2752.12438232,0.00020673,2]
[356837445,1743310030144,-462.91063778,0.00020673,2]
[356837446,1743310030167,-192.230601,0.00020882,2]
[356837447,1743310030191,-180.1962795,0.00021779,2]
[356837448,1743310030213,-699.85084299,0.00021801,2]
[356837449,1743310030235,-196.0704235,0.00021816,2]
[356837450,1743310033081,-2.89354958,0.00021816,2]
[356837451,1743310033102,-373.47,0.00021877,3]
[356837452,1743310033122,-373.47,0.00021877,3]
[356837453,1743310033143,-6.81111771,0.00021885,2]
[356837454,1743310035127,-293.18888229,0.00021885,2]
[356837455,1743310035152,-160.89,0.00021886,2]
[356837456,1743310035175,-76.09140752,0.00021886,2]
[356837457,1743310050138,-122.67290252,0.00021886,2]
[356837458,1743310050163,-325.02406176,0.00021886,2]
[356837459,1743310050194,-174.97593824,0.00021886,2]
[356837460,1743310050218,-239.00458985,0.00021886,2]
[356837461,1743310053122,-260.99541015,0.00021886,2]
[356837462,1743310053148,-2.49371713,0.00021886,2]
[356837463,1743310148087,-169.74423895,0.00020573,30]
[356837499,1743310232402,-2022.41348676,0.00021667,2]
[356837500,1743310232415,-186.19686771,0.00021804,2]
[356837501,1743310232425,-612.36948766,0.00021804,2]
[356837502,1743310232434,-186.19686771,0.00021817,2]
[356837503,1743310232443,-248.98,0.00021877,3]
[356837504,1743310232453,-746.95,0.00021877,3]
[356837505,1743310232462,-190.1513406,0.0002188,120]
[356837506,1743310232472,-300.0,0.00021886,2]
[356837507,1743310232482,-559.84754156,0.00021886,2]
[356837508,1743310232492,-500.0,0.00021886,2]
[356837509,1743310232501,-501.39503088,0.00021887,2]
[356837510,1743310232518,-4915.38889004,0.00021887,2]
[356837514,1743310238272,-1065.67057329,0.00021887,2]
[356837552,1743310240560,-14435.0,0.00021887,2]
[356837555,1743310240747,-99.93980547,0.00021887,2]
[356837578,1743310243562,-337.80241949,0.00021887,2]
[356837586,1743310246372,-434.4771514,0.00021887,2]
[356837591,1743310595584,-180.192473,0.0002,2]
[356837592,1743310640442,-180.192473,0.000198,2]
[356837599,1743310825274,-172.63844085,0.000198,2]
[356837600,1743311010695,-153.92089248,0.00019602,2]
[356837602,1743311199398,-152.27921964,0.000198,2]
[356837603,1743311226124,-2877.0575091,0.000198,2]
[356837604,1743311227004,-151.0,0.000198,2]
[356837605,1743311228098,-312.31535658,0.000198,2]
[356837606,1743311233330,-270.18960919,0.000198,2]
[356837607,1743311234129,-1111.84981483,0.000198,2]
[356837608,1743311234153,-82.25916722,0.0002,2]
[356837609,1743311252080,-1727.6498847,0.0002,2]
[356837610,1743311283375,-202.39100001,0.000198,2]
[356837611,1743311345103,-1356.26632414,0.000198,2]
[356837612,1743311345124,-184.03497813,0.0002,2]
[356837613,1743311347249,-731.21840898,0.0002,2]
[356837614,1743311347270,-648.27040488,0.0002,3]
[356837615,1743311352104,-56.11806694,0.0002,3]
[356837616,1743311352126,-488.8706246,0.00020485,2]
[356837617,1743311352148,-228.2730773,0.000205,2]
[356837618,1743311352170,-354.71823116,0.00020782,2]
[356837619,1743311354098,-56.70584684,0.00020782,2]
[356837620,1743311354120,-160.6227022,0.0002089,2]
[356837621,1743311354141,-450.38637657,0.00021,2]
[356837622,1743311365366,-192.2154471,0.00021378,2]
[356837623,1743311365390,-187.5819137,0.00021378,2]
[356837624,1743311365412,-14.10418381,0.00021378,2]
[356837650,1743311433029,-146.98603489,0.00021378,2]
[356837651,1743311433039,-873.85,0.00021766,3]
[356837652,1743311433049,-17.06712709,0.00021766,3]
[356837653,1743311433206,-711.13287291,0.00021766,3]
[356837654,1743311433215,-364.1,0.00021766,3]
[356837655,1743311433225,-170.40755756,0.00021775,2]
[356837656,1743311433234,-200.56872175,0.00021775,2]
[356837657,1743311433243,-300.0,0.00021775,2]
[356837658,1743311433252,-7374.7716642,0.00021776,2]
[356837659,1743311433263,-2298.88175153,0.00021776,2]
[356837660,1743311433272,-1301.04635734,0.00021785,5]
[356837661,1743311433281,-4720.45341717,0.00021787,2]
[356837676,1743311438605,-320.50323833,0.00021775,2]
[356837678,1743311438615,-167.53037286,0.00021775,2]
[356837679,1743311438625,-699.58645855,0.00021775,2]
[356837682,1743311438637,-699.58645855,0.00021775,2]
[356837684,1743311438647,-699.58645855,0.00021775,2]
[356837686,1743311438657,-699.58645855,0.00021775,2]
[356837688,1743311438667,-699.58645855,0.00021775,2]
[356837690,1743311438676,-699.58645855,0.00021775,2]
[356837691,1743311438686,-699.58645855,0.00021775,2]
[356837693,1743311438696,-699.58645855,0.00021775,2]
[356837695,1743311438705,-699.58645855,0.00021775,2]
[356837697,1743311438715,-699.58645855,0.00021775,2]
[356837699,1743311438725,-699.58645855,0.00021775,2]
[356837701,1743311438735,-699.58645855,0.00021775,2]
[356837703,1743311438744,-699.58645855,0.00021775,2]
[356837706,1743311438754,-699.58645855,0.00021775,2]
[356837707,1743311438768,-699.58645855,0.00021775,2]
[356837710,1743311438777,-699.58645855,0.00021775,2]
[356837712,1743311438787,-699.58645855,0.00021775,2]
[356837714,1743311438797,-699.58645855,0.00021775,2]
[356837716,1743311438808,-699.58645855,0.00021775,2]
[356837718,1743311438817,-699.58645855,0.00021775,2]
[356837720,1743311438826,-699.58645855,0.00021775,2]
[356837722,1743311438837,-699.58645855,0.00021775,2]
[356837724,1743311438852,-699.58645855,0.00021775,2]
[356837726,1743311438862,-699.58645855,0.00021775,2]
[356837728,1743311438871,-699.58645855,0.00021775,2]
[356837730,1743311438881,-699.58645855,0.00021775,2]
[356837732,1743311438891,-699.58645855,0.00021775,2]
[356837733,1743311438900,-699.58645855,0.00021775,2]
[356837734,1743311438909,-699.58645855,0.00021775,2]
[356837735,1743311438919,-699.58645855,0.00021775,2]
[356837736,1743311438929,-699.58645855,0.00021775,2]
[356837737,1743311438939,-699.58645855,0.00021775,2]
[356837738,1743311438948,-699.58645855,0.00021775,2]
[356837739,1743311438959,-699.58645855,0.00021775,2]
[356837740,1743311438968,-699.58645855,0.00021775,2]
[356837741,1743311438978,-699.58645855,0.00021775,2]
[356837742,1743311438987,-699.58645855,0.00021775,2]
[356837743,1743311438997,-699.58645855,0.00021775,2]
[356837744,1743311439007,-699.58645855,0.00021775,2]
[356837745,1743311439016,-699.58645855,0.00021775,2]
[356837746,1743311439025,-699.58645855,0.00021775,2]
[356837747,1743311439035,-699.58645855,0.00021775,2]
[356837748,1743311439044,-699.58645855,0.00021775,2]
[356837749,1743311439053,-699.58645855,0.00021775,2]
[356837750,1743311439062,-699.58645855,0.00021775,2]
[356837751,1743311439071,-699.58645855,0.00021775,2]
[356837752,1743311439080,-699.58645855,0.00021775,2]
[356837753,1743311439090,-699.58645855,0.00021775,2]
[356837754,1743311439099,-699.58645855,0.00021775,2]
[356837755,1743311439108,-699.58645855,0.00021775,2]
[356837756,1743311439117,-699.58645855,0.00021775,2]
[356837757,1743311439127,-699.58645855,0.00021775,2]
[356837758,1743311439135,-14849.27691242,0.00021787,2]
[356837846,1743311464252,-172.63844085,0.00021777,3]
[356837847,1743311480643,-9.41155915,0.00021777,3]
[356837848,1743311480665,-151.71,0.00021777,3]
[356837849,1743311480689,-48.88552846,0.00021786,2]
[356837850,1743311523675,-197.08551895,0.00021774,2]
[356837851,1743311531761,249.3766887,0.00020877,2]
[356837855,1743312427208,-397.94264,0.00020695,2]
[356837856,1743312427229,-306.15728587,0.00021453,2]
[356837857,1743312427249,-624.57786073,0.0002157,2]
[356837858,1743312427271,-490.53,0.00021661,3]
[356837859,1743312427293,-245.26,0.00021661,3]
[356837860,1743312427317,-735.82,0.00021661,3]
[356837861,1743312427339,-300.0,0.00021668,2]
[356837862,1743312427360,-191.14323317,0.00021669,2]
[356837863,1743312427384,-68.43312711,0.00021669,2]
[356837864,1743312430099,-557.8539185,0.00021669,2]
[356837865,1743312430125,-443.3288435,0.00021669,2]
[356837866,1743312434093,-185.9503816,0.00021669,2]
[356837867,1743312437256,-289.34629414,0.00021669,2]
[356837868,1743312437282,-918.62551924,0.00021669,2]
[356837869,1743312437307,-918.62551924,0.00021669,2]
[356837870,1743312437333,-242.54336829,0.00021669,2]
[356837871,1743312451096,-275.787392,0.00020841,2]
[356837872,1743312451125,-519.41455202,0.00021669,2]
[356837929,1743312631848,-546.50562813,0.00021568,2]
[356837930,1743312631858,-245.26,0.00021658,3]
[356837931,1743312631867,-580.43864001,0.00021658,3]
[356837932,1743312631907,-155.36135999,0.00021658,3]
[356837933,1743312631916,-300.0,0.00021667,2]
[356837934,1743312631925,-8183.32263272,0.00021668,2]
[356837971,1743312646003,-500.0,0.00021667,2]
[356837972,1743312646013,-500.0,0.00021667,2]
[356837973,1743312646022,-500.0,0.00021667,2]
[356837974,1743312646031,-500.0,0.00021667,2]
[356837975,1743312646040,-500.0,0.00021667,2]
[356837976,1743312646049,-500.0,0.00021667,2]
[356837977,1743312646059,-500.0,0.00021667,2]
[356837978,1743312646067,-500.0,0.00021667,2]
[356837979,1743312646076,-500.0,0.00021667,2]
[356837980,1743312646086,-500.0,0.00021667,2]
[356837981,1743312646095,-500.0,0.00021667,2]
[356837982,1743312646105,-500.0,0.00021667,2]
[356837983,1743312646114,-500.0,0.00021667,2]
[356837984,1743312646124,-500.0,0.00021667,2]
[356837985,1743312646133,-500.0,0.00021667,2]
[356837986,1743312646146,-500.0,0.00021667,2]
[356837987,1743312646155,-500.0,0.00021667,2]
[356837988,1743312646165,-500.0,0.00021667,2]
[356837989,1743312646174,-500.0,0.00021667,2]
[356837990,1743312646183,-500.0,0.00021667,2]
[356837991,1743312646193,-500.0,0.00021667,2]
[356837992,1743312646201,-500.0,0.00021667,2]
[356837993,1743312646211,-500.0,0.00021667,2]
[356837994,1743312646220,-500.0,0.00021667,2]
[356837995,1743312646229,-500.0,0.00021667,2]
[356837996,1743312646238,-500.0,0.00021667,2]
[356837997,1743312646247,-500.0,0.00021667,2]
[356837998,1743312646256,-500.0,0.00021667,2]
[356837999,1743312646266,-500.0,0.00021667,2]
[356838000,1743312646275,-500.0,0.00021667,2]
[356838001,1743312646284,-500.0,0.00021667,2]
[356838002,1743312646293,-500.0,0.00021667,2]
[356838003,1743312646302,-500.0,0.00021667,2]
[356838004,1743312646311,-500.0,0.00021667,2]
[356838005,1743312646320,-500.0,0.00021667,2]
[356838006,1743312646329,-500.0,0.00021667,2]
[356838007,1743312646339,-500.0,0.00021667,2]
[356838008,1743312646348,-455.36135999,0.00021668,2]
[356838009,1743312646357,-151.0,0.00021669,2]
[356838010,1743312646366,-127144.52123955,0.00021671,2]
[356838011,1743312646378,-1863.19746774,0.00021671,2]
[356838012,1743312646389,-17240.17110349,0.00021671,2]
[356838015,1743312686244,295.96,0.00020721,2]
[356838016,1743312686265,294.0,0.00020721,2]
[356838017,1743312714377,250.0,0.00020695,2]
[356838018,1743312729695,61.57146094,0.00020514,2]
[356838019,1743312729717,160.84687443,0.00020514,2]
[356838025,1743313509308,-159.247357,0.00019701,2]
[356838027,1743313625288,-361.41405148,0.00019701,2]
[356838028,1743313625961,-164.97350521,0.00019701,2]
[356838029,1743313628103,-452.10266969,0.00019701,2]
[356838030,1743313628790,-181.31170913,0.00019701,2]
[356838031,1743313631533,-255.73525271,0.00019701,2]
[356838032,1743313632708,-234.0697124,0.00019701,2]
[356838033,1743313636094,-781.09847676,0.00019701,2]
[356838034,1743313638482,-152.86131706,0.00019701,2]
[356838035,1743313639090,-472.22096866,0.00019701,2]
[356838036,1743313639113,-152.04403782,0.000199,2]
[356838037,1743313639137,-158.0,0.0002,2]